bitfinex/quotes_BTCUSD_20250802
["timestamp","ask_amount","ask_price","bid_price","bid_amount"]
[1754108802298,0.01670052,114160.0,114150.0,0.61306791]
[1754108802751,0.00299011,114160.0,114150.0,0.61306791]
[1754108803196,0.00100011,114160.0,114150.0,0.61306791]
[1754108804271,0.00100011,114160.0,114150.0,0.61406791]
[1754108804879,0.00100011,114160.0,114150.0,0.58093619]
[1754108809974,0.42813608,114170.0,114150.0,0.16575]
[1754108810184,0.60331344,114170.0,114150.0,0.55611619]
[1754108810407,0.60331344,114170.0,114160.0,0.02482]
[1754108810628,0.01570038,114170.0,114160.0,0.50347981]
[1754108810880,0.01371038,114170.0,114160.0,0.50347981]
[1754108811095,0.03553393,114170.0,114160.0,0.50347981]
[1754108811286,0.01371038,114170.0,114160.0,0.50347981]
[1754108813303,4.407674,114170.0,114160.0,0.50347981]
[1754108813521,0.02152407,114170.0,114160.0,0.50347981]
[1754108813739,4.407674,114170.0,114160.0,0.50347981]
[1754108814917,4.407674,114170.0,114160.0,0.44538619]
[1754108816035,0.02145348,114170.0,114160.0,0.44538619]
[1754108816255,0.03516328,114170.0,114160.0,0.44538619]
[1754108816480,0.0137098,114170.0,114160.0,0.44538619]
[1754108824096,0.03492893,114170.0,114160.0,0.44538619]
[1754108825879,0.03492893,114170.0,114160.0,0.51030914]
[1754108829860,0.03492893,114170.0,114160.0,0.44538619]
[1754108833782,0.02121913,114170.0,114160.0,0.44538619]
[1754108834141,4.407674,114170.0,114160.0,0.44538619]
[1754108836653,0.0216448,114170.0,114160.0,0.44538619]
[1754108836824,0.03535438,114170.0,114160.0,0.44538619]
[1754108837023,0.01370958,114170.0,114160.0,0.44538619]
[1754108837202,0.01370958,114170.0,114160.0,0.45707392]
[1754108841350,0.02652273,114170.0,114160.0,0.45707392]
[1754108842495,0.01281315,114170.0,114160.0,0.45707392]
[1754108842926,4.407674,114170.0,114160.0,0.44538619]
[1754108845674,4.42044865,114170.0,114160.0,0.44538619]
[1754108845885,0.01277465,114170.0,114160.0,0.44538619]
[1754108846160,0.74821848,114180.0,114160.0,0.44538619]
[1754108846398,4.407674,114170.0,114160.0,0.42056619]
[1754108846603,4.407674,114170.0,114160.0,0.55432619]
[1754108846810,4.40424168,114170.0,114160.0,0.61676314]
[1754108847017,4.40424168,114170.0,114160.0,0.64194314]
[1754108847796,4.41683668,114170.0,114160.0,0.64194314]
[1754108848009,0.012595,114170.0,114160.0,0.64194314]
[1754108848238,0.012595,114170.0,114160.0,1.05712933]
[1754108848447,4.904242,114170.0,114160.0,1.05712933]
[1754108848659,4.404242,114170.0,114160.0,1.05712933]
[1754108849292,4.40432576,114170.0,114160.0,1.05712933]
[1754108849503,0.50008376,114170.0,114160.0,1.14132922]
[1754108851139,0.50008376,114170.0,114160.0,0.31095684]
[1754108851373,0.50008376,114170.0,114160.0,0.72614303]
[1754108851615,0.50008376,114170.0,114160.0,1.14132922]
[1754108852613,8.376e-05,114170.0,114160.0,1.14132922]
[1754108852814,0.50008376,114170.0,114160.0,1.14132922]
[1754108853022,0.51320488,114170.0,114160.0,1.14132922]
[1754108857424,0.52691384,114170.0,114160.0,1.14132922]
[1754108858902,0.52691384,114170.0,114160.0,0.31095684]
[1754108859081,0.52691384,114170.0,114160.0,1.14132922]
[1754108860097,0.52691384,114170.0,114160.0,0.72614303]
[1754108861317,0.52691384,114170.0,114160.0,1.14132922]
[1754108863017,0.51320488,114170.0,114160.0,1.14132922]
[1754108877824,0.51320488,114170.0,114160.0,1.07889227]
[1754108880071,0.02902025,114180.0,114160.0,1.07889227]
[1754108880306,4.235085,114170.0,114160.0,0.50476608]
[1754108880510,4.235085,114170.0,114160.0,0.63848608]
[1754108880861,4.235085,114170.0,114160.0,0.66326608]
[1754108881060,4.24810332,114170.0,114160.0,0.73923032]
[1754108881267,0.51301832,114170.0,114160.0,0.73923032]
[1754108881485,0.51301832,114170.0,114160.0,1.15441651]
[1754108887339,0.52672718,114170.0,114160.0,1.15441651]
[1754108889776,0.52672718,114170.0,114160.0,0.32404413]
[1754108889983,0.52672718,114170.0,114160.0,1.07845227]
[1754108890986,0.02672718,114170.0,114160.0,1.07845227]
[1754108891190,0.52672718,114170.0,114160.0,1.07845227]
[1754108896146,0.51301832,114170.0,114160.0,1.07845227]
[1754108898788,0.51301832,114170.0,114160.0,1.07945227]
[1754108898964,0.51301832,114170.0,114160.0,1.16365216]
[1754108899613,0.01301832,114170.0,114160.0,1.16365216]
[1754108899922,0.02902013,114180.0,114160.0,1.16465216]
[1754108900097,0.02902013,114180.0,114170.0,0.54886619]
[1754108900295,0.03100013,114180.0,114170.0,0.54886619]
[1754108900537,0.03100013,114180.0,114170.0,0.65784608]
[1754108902100,0.05428652,114180.0,114170.0,0.65784608]
[1754108903287,0.04057768,114180.0,114170.0,0.65784608]
[1754108906130,0.04057768,114180.0,114170.0,0.66303608]
[1754108906350,0.54057768,114180.0,114170.0,0.66303608]
[1754108906566,0.04057768,114180.0,114170.0,0.66303608]
[1754108907409,0.05428619,114180.0,114170.0,0.66303608]
[1754108907800,0.55428619,114180.0,114170.0,0.66303608]
[1754108908007,0.05428619,114180.0,114170.0,0.66303608]
[1754108910163,0.05428619,114180.0,114170.0,0.24784989]
[1754108910612,0.05230619,114180.0,114170.0,0.24784989]
[1754108912383,0.05230619,114180.0,114170.0,0.66303608]
[1754108913007,0.03859768,114180.0,114170.0,0.66303608]
[1754108913650,0.53859768,114180.0,114170.0,0.81727931]
[1754108917289,0.5523055,114180.0,114170.0,0.81727931]
[1754108917718,0.5523055,114180.0,114170.0,0.81827931]
[1754108918480,0.5523055,114180.0,114170.0,0.81927931]
[1754108922660,0.0523055,114180.0,114170.0,0.81927931]
[1754108922868,0.03859768,114180.0,114170.0,0.81927931]
[1754108930558,0.03859768,114180.0,114170.0,0.40409312]
[1754108930779,0.04057768,114180.0,114170.0,0.11616989]
[1754108931031,0.06095768,114180.0,114170.0,0.21979989]
[1754108931399,0.04057768,114180.0,114170.0,0.63498608]
[1754108931615,0.04057768,114180.0,114170.0,0.65844608]
[1754108931806,0.04057768,114180.0,114170.0,0.24325989]
[1754108933098,0.64848589,114180.0,114170.0,0.002]
[1754108933242,0.65130589,114180.0,114170.0,0.13556]
[1754108933847,0.2361197,114180.0,114170.0,0.13556]
[1754108934050,0.65130589,114180.0,114170.0,0.13556]
[1754108936384,0.60926821,114180.0,114170.0,0.05973762]
[1754108936598,0.60926821,114180.0,114170.0,0.13556]
[1754108937440,0.62297637,114180.0,114170.0,0.13556]
[1754108937855,0.44781435,114180.0,114170.0,0.13556]
[1754108939898,0.43025435,114180.0,114170.0,0.13556]
[1754108940459,0.43025435,114180.0,114170.0,0.16262]
[1754108941060,0.53799334,114180.0,114170.0,0.22040062]
[1754108941259,0.45317953,114180.0,114170.0,0.22040062]
[1754108942097,0.45317953,114180.0,114170.0,0.16262]
[1754108942966,0.45317953,114180.0,114170.0,0.02906]
[1754108943165,0.45317953,114180.0,114170.0,0.16262]
[1754108945100,0.03799334,114180.0,114170.0,0.16262]
[1754108945224,0.47053953,114180.0,114170.0,0.13556]
[1754108945589,0.45317953,114180.0,114170.0,0.13556]
[1754108945790,0.45317953,114180.0,114170.0,0.16262]
[1754108946150,0.03799334,114180.0,114170.0,0.16262]
[1754108946353,0.45317953,114180.0,114170.0,0.16262]
[1754108948331,0.24552417,114180.0,114170.0,0.22040062]
[1754108948770,4.735085,114180.0,114170.0,0.22040062]
[1754108948957,0.41518619,114180.0,114170.0,0.22248062]
[1754108949159,0.41518619,114180.0,114170.0,0.08892062]
[1754108949365,0.41518619,114180.0,114170.0,0.16466]
[1754108950928,0.02292056,114180.0,114170.0,0.57984619]
[1754108951364,4.235085,114180.0,114170.0,0.57984619]
[1754108955663,0.02336178,114180.0,114170.0,0.16466]
[1754108955841,0.02336178,114180.0,114170.0,0.57984619]
[1754108956078,4.235085,114180.0,114170.0,0.57984619]
[1754108957203,4.235085,114180.0,114170.0,0.66404608]
[1754108958278,0.33737577,114190.0,114170.0,0.66404608]
[1754108958502,4.235085,114180.0,114170.0,0.66404608]
[1754108959325,4.235085,114180.0,114170.0,0.57984619]
[1754108959528,4.235085,114180.0,114170.0,0.57884619]
[1754108959689,0.03634333,114180.0,114170.0,0.57784619]
[1754108960036,4.235085,114180.0,114170.0,0.16266]
[1754108960461,4.235085,114180.0,114170.0,0.57784619]
[1754108960668,4.235085,114180.0,114170.0,0.57884619]
[1754108961577,4.235085,114180.0,114170.0,0.59408178]
[1754108961792,4.235085,114180.0,114170.0,0.59508178]
[1754108963648,4.27057982,114180.0,114170.0,0.59508178]
[1754108963861,0.53549482,114180.0,114170.0,0.59508178]
[1754108965477,0.03549482,114180.0,114170.0,0.59508178]
[1754108965688,0.6251809,114190.0,114170.0,0.59508178]
[1754108965895,4.235085,114180.0,114170.0,0.59508178]
[1754108966730,4.235085,114180.0,114170.0,0.59408178]
[1754108967143,4.27012573,114180.0,114170.0,0.59408178]
[1754108967340,0.03504073,114180.0,114170.0,0.59408178]
[1754108967544,0.7586609,114190.0,114170.0,0.59408178]
[1754108967545,0.6251809,114190.0,114170.0,0.59308178]
[1754108967743,4.235085,114180.0,114170.0,0.59308178]
[1754108968540,4.235085,114180.0,114170.0,0.59408178]
[1754108969315,4.235085,114180.0,114170.0,0.59508178]
[1754108970304,4.235085,114180.0,114170.0,0.17989559]
[1754108970559,4.235085,114180.0,114170.0,0.57984619]
[1754108971040,0.03628137,114180.0,114170.0,0.57984619]
[1754108971268,4.235085,114180.0,114170.0,0.57984619]
[1754108974875,0.03541506,114180.0,114170.0,0.57984619]
[1754108975230,4.235085,114180.0,114170.0,0.57984619]
[1754108975414,0.7586609,114190.0,114170.0,0.57984619]
[1754108975569,0.34347471,114190.0,114170.0,0.66404608]
[1754108975789,0.20999471,114190.0,114170.0,0.66404608]
[1754108976816,0.20999471,114190.0,114170.0,0.24785989]
[1754108977143,0.6251809,114190.0,114170.0,0.57884619]
[1754108977351,0.6251809,114190.0,114170.0,0.57784619]
[1754108979063,0.66041058,114190.0,114170.0,0.57784619]
[1754108979703,0.24522439,114190.0,114170.0,0.57784619]
[1754108980017,0.66041058,114190.0,114170.0,0.57784619]
[1754108980223,0.66041058,114190.0,114170.0,0.59728448]
[1754108980606,0.24522439,114190.0,114170.0,0.59728448]
[1754108981144,0.24522439,114190.0,114180.0,0.41518619]
[1754108981580,0.22542439,114190.0,114180.0,0.41518619]
[1754108981783,0.22542439,114190.0,114180.0,0.44330619]
[1754108982968,0.05027748,114190.0,114180.0,0.44533619]
[1754108983223,0.22542416,114190.0,114180.0,0.44533619]
[1754108983651,0.22542416,114190.0,114180.0,0.02812]
[1754108984089,0.05027748,114190.0,114180.0,0.03015]
[1754108984236,0.22542416,114190.0,114180.0,0.03015]
[1754108984647,0.22542416,114190.0,114180.0,0.02812]
[1754108985292,0.22542416,114190.0,114180.0,0.08977645]
[1754108985293,0.05027748,114190.0,114180.0,0.08977645]
[1754108985492,0.05027748,114190.0,114180.0,0.03015]
[1754108993686,4.235085,114190.0,114180.0,0.03015]
[1754108997459,4.235085,114190.0,114180.0,0.44533619]
[1754108998103,4.235085,114190.0,114180.0,0.03015]
[1754109000593,4.41023168,114190.0,114180.0,0.03015]
[1754109000810,0.17514668,114190.0,114180.0,0.03015]
[1754109001705,0.17514668,114190.0,114180.0,0.51216997]
[1754109001706,4.235085,114190.0,114180.0,0.51216997]
[1754109004326,0.37289138,114200.0,114180.0,0.51216997]
[1754109004508,4.235085,114190.0,114180.0,0.51216997]
[1754109004697,4.235085,114190.0,114180.0,0.64556997]
[1754109005849,4.235085,114190.0,114180.0,0.16355]
[1754109006286,4.65027119,114190.0,114180.0,0.16355]
[1754109006488,0.41518619,114190.0,114180.0,0.16355]
[1754109008586,0.65467757,114200.0,114180.0,0.16355]
[1754109008792,4.235085,114190.0,114180.0,0.16355]
[1754109014375,4.235085,114190.0,114180.0,0.23300458]
[1754109014824,4.235085,114190.0,114180.0,0.16355]
[1754109024376,4.235085,114190.0,114180.0,0.16355]
[1754109029529,4.235085,114190.0,114180.0,0.172307]
[1754109031244,4.235085,114190.0,114180.0,0.58749319]
[1754109034959,4.235085,114190.0,114180.0,0.67169308]
[1754109036578,4.235085,114190.0,114180.0,0.25650689]
[1754109036804,4.235085,114190.0,114180.0,0.67169308]
[1754109039363,0.64507142,114200.0,114180.0,0.25650689]
[1754109040425,0.64507142,114200.0,114180.0,0.29929957]
[1754109045962,0.41518619,114190.0,114180.0,0.29929957]
[1754109046364,0.41518619,114190.0,114180.0,0.25650689]
[1754109047337,0.64507142,114200.0,114180.0,0.25650689]
[1754109047540,0.41518619,114190.0,114180.0,0.25650689]
[1754109057046,0.41518619,114190.0,114180.0,0.12310689]
[1754109057267,0.59033287,114190.0,114180.0,0.172147]
[1754109057462,0.59033287,114190.0,114180.0,0.170117]
[1754109062647,0.59033287,114190.0,114180.0,0.036877]
[1754109062864,0.59033287,114190.0,114180.0,0.170117]
[1754109063461,0.17514668,114190.0,114180.0,0.170117]
[1754109063672,0.59033287,114190.0,114180.0,0.170117]
[1754109065531,0.59033287,114190.0,114180.0,0.172217]
[1754109066192,0.17514668,114190.0,114180.0,0.19860673]
[1754109066383,0.59033287,114190.0,114180.0,0.19860673]
[1754109066536,0.59033287,114190.0,114180.0,0.172217]
[1754109074619,0.39962949,114190.0,114180.0,0.172217]
[1754109075042,0.57477617,114190.0,114180.0,0.172217]
[1754109082092,0.62539142,114200.0,114180.0,0.67160308]
[1754109082309,0.62539142,114200.0,114190.0,0.15898936]
[1754109082557,0.62640142,114200.0,114190.0,0.16108936]
[1754109092338,0.62640142,114200.0,114190.0,0.15898936]
[1754109097058,0.45126901,114200.0,114190.0,0.16105936]
[1754109098668,0.62640035,114200.0,114190.0,0.15898936]
[1754109098877,1.04158654,114200.0,114190.0,0.15898936]
[1754109100176,1.04158654,114200.0,114190.0,0.02582936]
[1754109100388,0.8664552,114200.0,114190.0,0.16101936]
[1754109100599,0.8654452,114200.0,114190.0,0.16101936]
[1754109104676,0.8664552,114200.0,114190.0,0.16101936]
[1754109105117,0.8654452,114200.0,114190.0,0.16101936]
[1754109106114,0.45025901,114200.0,114190.0,0.16101936]
[1754109107879,0.62539035,114200.0,114190.0,0.16101936]
[1754109108089,0.62640035,114200.0,114190.0,0.16101936]
[1754109109683,0.45126901,114200.0,114190.0,0.16101936]
[1754109110534,1.04158654,114200.0,114190.0,0.16101936]
[1754109111112,0.21121416,114200.0,114190.0,0.16101936]
[1754109111244,1.04158654,114200.0,114190.0,0.16101936]
[1754109112170,0.8664552,114200.0,114190.0,0.16101936]
[1754109112559,0.45126901,114200.0,114190.0,0.16101936]
[1754109112768,0.8654452,114200.0,114190.0,0.16101936]
[1754109113364,0.45025901,114200.0,114190.0,0.16101936]
[1754109115946,0.62539035,114200.0,114190.0,0.16101936]
[1754109116156,0.62640035,114200.0,114190.0,0.16101936]
[1754109116372,1.04158654,114200.0,114190.0,0.16101936]
[1754109117906,0.21121416,114200.0,114190.0,0.16101936]
[1754109118108,1.04158654,114200.0,114190.0,0.16101936]
[1754109122701,0.21121416,114200.0,114190.0,0.16101936]
[1754109122889,1.04158654,114200.0,114190.0,0.16101936]
[1754109130989,0.62640035,114200.0,114190.0,0.16101936]
[1754109132389,0.62640035,114200.0,114190.0,0.16061936]
[1754109138826,0.45126901,114200.0,114190.0,0.16061936]
[1754109140964,0.5354689,114200.0,114190.0,0.16061936]
[1754109141110,0.45126901,114200.0,114190.0,0.16061936]
[1754109141315,0.03608282,114200.0,114190.0,0.16061936]
[1754109141522,0.45126901,114200.0,114190.0,0.16061936]
[1754109144980,0.03608282,114200.0,114190.0,0.16061936]
[1754109145186,0.45126901,114200.0,114190.0,0.16061936]
[1754109145384,0.45025901,114200.0,114190.0,0.16061936]
[1754109147095,0.03507282,114200.0,114190.0,0.16061936]
[1754109147368,0.41518619,114200.0,114190.0,0.16061936]
[1754109147570,0.59031753,114200.0,114190.0,0.16061936]
[1754109149635,0.44518332,114200.0,114190.0,0.16061936]
[1754109149874,0.02999713,114200.0,114190.0,0.16061936]
[1754109150067,0.44518332,114200.0,114190.0,0.16061936]
[1754109150237,0.41518619,114200.0,114190.0,0.16061936]
[1754109152106,0.03047548,114200.0,114190.0,0.2306627]
[1754109152351,0.03047548,114200.0,114190.0,0.71972947]
[1754109152559,0.5272127,114210.0,114190.0,0.73004878]
[1754109152771,0.5272605,114210.0,114200.0,0.41518619]
[1754109152977,0.0272605,114210.0,114200.0,0.02832]
[1754109155348,0.05788434,114210.0,114200.0,0.02832]
[1754109157716,0.03146848,114210.0,114200.0,0.02832]
[1754109159222,0.44665467,114210.0,114200.0,0.02832]
[1754109161079,0.03146848,114210.0,114200.0,0.02832]
[1754109164832,4.235085,114210.0,114200.0,0.02832]
[1754109166328,4.235085,114210.0,114200.0,0.04326952]
[1754109166623,4.235085,114210.0,114200.0,0.45845571]
[1754109167068,4.235085,114210.0,114200.0,0.44350619]
[1754109168027,0.03026832,114210.0,114200.0,0.44350619]
[1754109168227,1.18288396,114230.0,114200.0,0.44350619]
[1754109168428,4.235085,114210.0,114200.0,0.42049619]
[1754109168628,4.235085,114210.0,114200.0,0.55349619]
[1754109168871,4.235085,114220.0,114200.0,0.62690263]
[1754109169105,4.235085,114210.0,114200.0,0.62790263]
[1754109169306,4.235085,114210.0,114200.0,0.55449619]
[1754109169662,4.235085,114210.0,114200.0,0.57750619]
[1754109170470,4.235085,114210.0,114200.0,0.57650619]
[1754109170861,4.235085,114210.0,114200.0,0.57750619]
[1754109171740,4.235085,114210.0,114200.0,0.57850619]
[1754109172381,0.41518619,114220.0,114200.0,0.57850619]
[1754109172589,4.235085,114210.0,114200.0,0.57850619]
[1754109174169,4.235085,114210.0,114200.0,0.57750619]
[1754109174795,4.235085,114220.0,114200.0,1.07689227]
[1754109175011,4.235085,114220.0,114200.0,0.71968597]
[1754109175271,4.235085,114220.0,114210.0,0.02755]
[1754109175506,4.235085,114220.0,114210.0,0.44468619]
[1754109176207,4.235085,114220.0,114210.0,0.0295]
[1754109176434,4.236735,114220.0,114210.0,0.0295]
[1754109177551,4.65192119,114220.0,114210.0,0.0295]
[1754109177978,4.65192119,114220.0,114210.0,0.02755]
[1754109179473,4.236735,114220.0,114210.0,0.02755]
[1754109179657,4.65192119,114220.0,114210.0,0.02755]
[1754109180002,4.65192119,114220.0,114210.0,0.0295]
[1754109180637,4.65027119,114220.0,114210.0,0.0295]
[1754109182101,4.65027119,114220.0,114210.0,0.1625]
[1754109182857,4.45885819,114220.0,114210.0,0.1625]
[1754109183060,0.93741725,114230.0,114210.0,0.1625]
[1754109183344,4.042022,114220.0,114210.0,0.1625]
[1754109183571,4.45720819,114220.0,114210.0,0.1625]
[1754109183737,4.042022,114220.0,114210.0,0.1625]
[1754109183943,0.00165,114220.0,114210.0,0.1625]
[1754109184976,0.80441725,114230.0,114210.0,0.1625]
[1754109185238,4.042022,114220.0,114210.0,0.1625]
[1754109185436,4.042022,114220.0,114210.0,0.22868861]
[1754109185960,4.042022,114220.0,114210.0,0.1625]
[1754109187288,4.043672,114220.0,114210.0,0.1625]
[1754109187487,0.00165,114220.0,114210.0,0.1625]
[1754109188264,4.042022,114220.0,114210.0,0.57968619]
[1754109188693,4.042022,114220.0,114210.0,0.64972953]
[1754109189762,4.042022,114220.0,114210.0,0.73392942]
[1754109193277,0.03751564,114230.0,114210.0,0.73392942]
[1754109193500,0.03751564,114230.0,114210.0,0.70637942]
[1754109193750,0.03751564,114230.0,114220.0,0.02755]
[1754109193951,0.03916564,114230.0,114220.0,0.02755]
[1754109194159,0.03916564,114230.0,114220.0,0.0295]
[1754109194583,0.03751564,114230.0,114220.0,0.0295]
[1754109194793,0.03751564,114230.0,114220.0,0.44468619]
[1754109195015,0.03751564,114230.0,114220.0,0.0295]
[1754109195442,0.03751564,114230.0,114220.0,0.44468619]
[1754109195656,0.03751564,114230.0,114220.0,0.0295]
[1754109196551,0.03916564,114230.0,114220.0,0.0295]
[1754109198971,0.03916564,114230.0,114220.0,0.02755]
[1754109199729,0.45435183,114230.0,114220.0,0.02755]
[1754109201711,0.03916564,114230.0,114220.0,0.02755]
[1754109201933,0.45435183,114230.0,114220.0,0.02755]
[1754109202328,0.03916564,114230.0,114220.0,0.02755]
[1754109202541,0.45435183,114230.0,114220.0,0.02755]
[1754109203954,0.45435183,114230.0,114220.0,0.0295]
[1754109204436,0.62943718,114230.0,114220.0,0.0295]
[1754109205530,0.45435183,114230.0,114220.0,0.0295]
[1754109208738,0.62943718,114230.0,114220.0,0.0295]
[1754109208930,0.62943718,114230.0,114220.0,0.16246]
[1754109209097,0.21425099,114230.0,114220.0,0.16246]
[1754109209303,0.62943718,114230.0,114220.0,0.16246]
[1754109212292,0.45435183,114230.0,114220.0,0.16246]
[1754109213605,0.62943718,114230.0,114220.0,0.16246]
[1754109214015,0.45435183,114230.0,114220.0,0.16246]
[1754109214230,0.03916564,114230.0,114220.0,0.16246]
[1754109214450,0.45435183,114230.0,114220.0,0.16246]
[1754109218883,0.03916564,114230.0,114220.0,0.16246]
[1754109219116,0.45435183,114230.0,114220.0,0.16246]
[1754109220129,0.64858718,114230.0,114220.0,0.13292]
[1754109220562,0.62943718,114230.0,114220.0,0.13292]
[1754109220711,0.62943718,114230.0,114220.0,0.16054]
[1754109221544,0.21425099,114230.0,114220.0,0.16254]
[1754109221755,0.62943718,114230.0,114220.0,0.16254]
[1754109222174,0.21425099,114230.0,114220.0,0.16254]
[1754109222375,0.62943718,114230.0,114220.0,0.16254]
[1754109226832,0.6038019,114230.0,114220.0,0.16254]
[1754109227442,0.6229519,114230.0,114220.0,0.13292]
[1754109227842,0.6038019,114230.0,114220.0,0.16054]
[1754109228048,0.18861571,114230.0,114220.0,0.16054]
[1754109228240,0.6038019,114230.0,114220.0,0.16054]
[1754109228560,0.6038019,114230.0,114220.0,0.16254]
[1754109232503,0.6038019,114230.0,114220.0,0.16054]
[1754109232620,0.6038019,114230.0,114220.0,0.15742]
[1754109232836,0.18861571,114230.0,114220.0,0.16054]
[1754109233066,0.6038019,114230.0,114220.0,0.16054]
[1754109233475,0.6038019,114230.0,114220.0,0.16254]
[1754109234079,0.6038019,114230.0,114220.0,0.02962]
[1754109234233,0.6038019,114230.0,114220.0,0.16254]
[1754109234439,0.6038019,114230.0,114220.0,0.02962]
[1754109234884,0.18861571,114230.0,114220.0,0.16254]
[1754109235131,0.6038019,114230.0,114220.0,0.16254]
[1754109236198,0.18861571,114230.0,114220.0,0.02962]
[1754109236408,0.18861571,114230.0,114220.0,0.16254]
[1754109236624,0.6038019,114230.0,114220.0,0.16254]
[1754109237003,0.18861571,114230.0,114220.0,0.16254]
[1754109237215,0.6038019,114230.0,114220.0,0.16254]
[1754109238631,0.18861571,114230.0,114220.0,0.16254]
[1754109238835,0.42706655,114230.0,114220.0,0.16254]
[1754109241329,0.01188036,114230.0,114220.0,0.16254]
[1754109241542,0.41518619,114230.0,114220.0,0.16254]
[1754109241775,4.042022,114230.0,114220.0,0.16254]
[1754109242384,0.1591535,114240.0,114220.0,0.57772619]
[1754109242613,0.74940997,114240.0,114230.0,0.02705975]
[1754109242811,0.1611535,114240.0,114230.0,0.02705975]
[1754109243032,0.56758619,114240.0,114230.0,0.02921975]
[1754109243382,0.60316935,114240.0,114230.0,0.02921975]
[1754109243602,0.18798316,114240.0,114230.0,0.02921975]
[1754109243803,0.60316935,114240.0,114230.0,0.02921975]
[1754109247881,0.18798316,114240.0,114230.0,0.02921975]
[1754109248096,0.60316935,114240.0,114230.0,0.02921975]
[1754109249562,0.77823937,114240.0,114230.0,0.02921975]
[1754109251396,0.18798316,114240.0,114230.0,0.02921975]
[1754109251603,0.60316935,114240.0,114230.0,0.02921975]
[1754109253875,0.18598316,114240.0,114230.0,0.09926309]
[1754109254495,0.60116935,114240.0,114230.0,0.09926309]
[1754109254899,0.18598316,114240.0,114230.0,0.09926309]
[1754109255091,0.03598316,114240.0,114230.0,0.09926309]
[1754109255794,0.03598316,114240.0,114230.0,0.02921975]
[1754109256420,0.45116935,114240.0,114230.0,0.02921975]
[1754109257214,0.41518619,114240.0,114230.0,0.02921975]
[1754109257810,0.41518619,114240.0,114230.0,0.04063496]
[1754109258828,0.32557042,114250.0,114230.0,0.04063496]
[1754109259060,0.41518619,114240.0,114230.0,0.01537496]
[1754109259233,0.36101389,114250.0,114230.0,0.13504]
[1754109259446,0.36101389,114250.0,114240.0,0.00284005]
[1754109259651,0.77820008,114250.0,114240.0,0.02810005]
[1754109259882,0.77820008,114250.0,114240.0,0.02526]
[1754109260520,0.77620008,114250.0,114240.0,0.02742]
[1754109261212,0.77818008,114250.0,114240.0,0.02742]
[1754109261528,0.77818008,114250.0,114240.0,0.02526]
[1754109261957,0.77818008,114250.0,114240.0,0.03036]
[1754109262258,0.77818008,114250.0,114240.0,0.05368833]
[1754109262636,0.77818008,114250.0,114240.0,0.03036]
[1754109262843,0.36299389,114250.0,114240.0,0.03036]
[1754109263093,0.77818008,114250.0,114240.0,0.03036]
[1754109268365,0.36299389,114250.0,114240.0,0.03036]
[1754109268569,0.77818008,114250.0,114240.0,0.03036]
[1754109269240,0.77818008,114250.0,114240.0,0.02526]
[1754109273085,0.77818008,114250.0,114240.0,0.03055]
[1754109279286,0.60304136,114250.0,114240.0,0.03055]
[1754109279497,0.18785517,114250.0,114240.0,0.03055]
[1754109279709,0.60304136,114250.0,114240.0,0.03055]
[1754109280127,0.77809606,114250.0,114240.0,0.03055]
[1754109280338,0.60304136,114250.0,114240.0,0.03055]
[1754109281973,0.61674206,114250.0,114240.0,0.03055]
[1754109282373,0.20155587,114250.0,114240.0,0.03055]
[1754109282627,0.61674206,114250.0,114240.0,0.03055]
[1754109282813,0.79179676,114250.0,114240.0,0.03055]
[1754109284929,0.77809606,114250.0,114240.0,0.03055]
[1754109286562,0.77809606,114250.0,114230.0,0.20612334]
[1754109286757,0.41518619,114240.0,114230.0,0.20612334]
[1754109286943,0.77611606,114250.0,114240.0,0.02348]
[1754109287153,0.77809606,114250.0,114240.0,0.02348]
[1754109288295,0.79179691,114250.0,114240.0,0.02348]
[1754109289309,1.29179691,114250.0,114240.0,0.02348]
[1754109291669,0.87661072,114250.0,114240.0,0.02348]
[1754109291870,1.29179691,114250.0,114240.0,0.02348]
[1754109293113,1.29179691,114250.0,114240.0,0.02668]
[1754109293716,1.11674221,114250.0,114240.0,0.02877]
[1754109294062,1.11476221,114250.0,114240.0,0.02877]
[1754109295622,1.29179691,114250.0,114230.0,0.07004334]
[1754109295841,1.31021691,114250.0,114240.0,0.13288]
[1754109296063,1.31021691,114250.0,114230.0,0.31441323]
[1754109296286,0.41518619,114240.0,114230.0,0.31441323]
[1754109296522,0.41518619,114240.0,114230.0,0.31646323]
[1754109296745,0.41518619,114240.0,114230.0,0.31642323]
[1754109298092,0.41518619,114240.0,114230.0,0.31742323]
[1754109298750,0.41518619,114240.0,114230.0,0.31842323]
[1754109300686,0.59025621,114240.0,114230.0,0.31842323]
[1754109301080,0.87463072,114250.0,114230.0,0.31842323]
[1754109301207,0.41518619,114240.0,114230.0,0.29408323]
[1754109301626,0.37463072,114250.0,114230.0,0.29408323]
[1754109301841,0.41518619,114240.0,114230.0,0.29408323]
[1754109302471,0.41518619,114240.0,114230.0,0.31842323]
[1754109302906,0.59025621,114240.0,114230.0,0.31842323]
[1754109303534,0.37463216,114250.0,114230.0,0.73260942]
[1754109303836,0.78981835,114250.0,114240.0,0.02729]
[1754109304043,0.87599824,114250.0,114240.0,0.02729]
[1754109304492,0.79179835,114250.0,114240.0,0.02729]
[1754109305321,0.58705591,114250.0,114240.0,0.02729]
[1754109305741,0.60075662,114250.0,114240.0,0.02729]
[1754109307839,0.63613876,114250.0,114240.0,0.02729]
[1754109309710,0.63613876,114250.0,114240.0,0.02434]
[1754109312741,0.06948285,114250.0,114230.0,0.72955942]
[1754109312935,0.46624904,114250.0,114240.0,0.02434]
[1754109313292,0.46624904,114250.0,114240.0,0.02729]
[1754109313895,0.46624904,114250.0,114240.0,0.16013]
[1754109314322,0.64130374,114250.0,114240.0,0.16013]
[1754109314729,0.64130374,114250.0,114240.0,0.15718]
[1754109322653,0.64130374,114250.0,114240.0,0.16218]
[1754109325956,0.46624904,114250.0,114240.0,0.16218]
[1754109328175,0.05106285,114250.0,114240.0,0.16218]
[1754109328385,0.46624904,114250.0,114240.0,0.16218]
[1754109329709,0.05106285,114250.0,114240.0,0.16218]
[1754109329905,0.46624904,114250.0,114240.0,0.16218]
[1754109333381,0.46624904,114250.0,114240.0,0.16013]
[1754109333860,0.46624904,114250.0,114240.0,0.15657]
[1754109334476,0.05106285,114250.0,114240.0,0.15657]
[1754109334681,0.05106285,114250.0,114240.0,0.15966]
[1754109334983,0.46624904,114250.0,114240.0,0.16171]
[1754109340454,0.46624904,114250.0,114240.0,0.16167]
[1754109340679,0.46624904,114250.0,114240.0,0.02887]
[1754109340909,0.46426904,114250.0,114240.0,0.16167]
[1754109346792,0.04908285,114250.0,114240.0,0.16167]
[1754109347009,0.46426904,114250.0,114240.0,0.16167]
[1754109348308,0.04908285,114250.0,114240.0,0.16167]
[1754109348526,0.46426904,114250.0,114240.0,0.16167]